bitfinex/quotes_BTCUSD_20241111
["timestamp","ask_amount","ask_price","bid_price","bid_amount"]
[1731311978863,0.27217222,81150.0,81149.0,0.002684]
[1731311982389,0.28366753,81150.0,81149.0,0.002684]
[1731311982590,0.123237,81144.0,81143.0,0.062884]
[1731311982860,0.27218122,81144.0,81143.0,0.062884]
[1731311984419,0.27218122,81144.0,81143.0,0.064884]
[1731311986721,0.14894422,81144.0,81143.0,0.064884]
[1731311987158,0.27218122,81144.0,81143.0,0.062884]
[1731311987926,0.14894422,81144.0,81143.0,0.062884]
[1731311988134,0.14894422,81144.0,81143.0,0.064884]
[1731311988693,0.32205848,81144.0,81143.0,0.064884]
[1731311989053,0.33355481,81144.0,81143.0,0.064884]
[1731311989674,0.37031118,81144.0,81143.0,0.064884]
[1731311989819,0.33355481,81144.0,81143.0,0.062884]
[1731311990015,0.28367755,81144.0,81143.0,0.064884]
[1731311990224,0.27218122,81144.0,81143.0,0.064884]
[1731311990424,0.28367755,81144.0,81143.0,0.064884]
[1731311990629,0.34878122,81144.0,81143.0,0.064884]
[1731311990812,0.36027755,81144.0,81143.0,0.064884]
[1731311991026,0.4588897,81144.0,81143.0,0.064884]
[1731311991651,0.36028354,81144.0,81143.0,0.064884]
[1731311995362,0.37870492,81144.0,81143.0,0.064884]
[1731311996642,0.30210492,81144.0,81143.0,0.064884]
[1731311997849,0.28368354,81144.0,81143.0,0.064884]
[1731311998065,0.30210492,81144.0,81143.0,0.064884]
[1731311998250,0.28368354,81144.0,81143.0,0.064884]
[1731311998452,0.30210492,81144.0,81143.0,0.064884]
[1731311998864,0.30210492,81144.0,81143.0,0.062884]
[1731311999281,0.30210492,81144.0,81143.0,0.064884]
[1731311999500,0.51293394,81144.0,81143.0,0.064884]
[1731311999700,0.51293394,81144.0,81132.0,0.001394]
[1731311999701,0.123254,81133.0,81132.0,0.001394]
[1731311999841,0.16048334,81133.0,81132.0,0.001394]
[1731312000241,0.12594221,81133.0,81132.0,0.001394]
[1731312000467,0.24919621,81133.0,81132.0,0.001394]
[1731312000671,0.27226673,81133.0,81132.0,0.001394]
[1731312000876,0.28380199,81133.0,81132.0,0.001394]
[1731312001488,0.51550199,81133.0,81132.0,0.001394]
[1731312001690,0.4981526,81133.0,81132.0,0.001394]
[1731312001894,0.51660902,81133.0,81132.0,0.001394]
[1731312002096,0.4981526,81133.0,81132.0,0.001394]
[1731312002903,0.3784526,81133.0,81132.0,0.001394]
[1731312003160,0.3854526,81133.0,81132.0,0.001394]
[1731312003496,0.37391734,81133.0,81132.0,0.001394]
[1731312003680,0.38543417,81133.0,81132.0,0.001394]
[1731312004288,0.40822368,81133.0,81132.0,0.001394]
[1731312005500,0.39670685,81133.0,81132.0,0.001394]
[1731312005726,0.43124349,81133.0,81132.0,0.001394]
[1731312005926,0.45426335,81133.0,81132.0,0.001394]
[1731312006890,0.45063441,81133.0,81132.0,0.001394]
[1731312007735,0.39982504,81133.0,81132.0,0.001394]
[1731312007998,0.29982504,81133.0,81132.0,0.001394]
[1731312008706,0.28831511,81133.0,81132.0,0.001394]
[1731312009121,0.29982504,81133.0,81132.0,0.001394]
[1731312009892,0.37732504,81133.0,81132.0,0.001394]
[1731312010084,0.48253477,81133.0,81132.0,0.001394]
[1731312010309,0.98212504,81133.0,81132.0,0.001394]
[1731312010532,1.00052737,81133.0,81132.0,0.001394]
[1731312011092,1.07561511,81133.0,81132.0,0.001394]
[1731312011290,1.09401682,81133.0,81132.0,0.001394]
[1731312011504,1.2314601,81133.0,81132.0,0.001394]
[1731312011914,1.17853061,81133.0,81132.0,0.001394]
[1731312012348,1.20843163,81133.0,81132.0,0.001394]
[1731312013216,1.20842858,81133.0,81132.0,0.001394]
[1731312013364,1.08248637,81133.0,81132.0,0.001394]
[1731312015814,0.40018637,81133.0,81132.0,0.001394]
[1731312016024,0.39518637,81133.0,81132.0,0.001394]
[1731312016221,0.005,81131.0,81123.0,0.18504697]
[1731312016386,0.123268,81124.0,81123.0,0.18504697]
[1731312016587,0.123269,81123.0,81122.0,0.001684]
[1731312016977,0.38502674,81123.0,81122.0,0.001684]
[1731312017639,0.39652812,81123.0,81122.0,0.001684]
[1731312017857,0.38502674,81123.0,81122.0,0.001684]
[1731312018063,0.39652803,81123.0,81122.0,0.001684]
[1731312018266,0.1374435,81123.0,81122.0,0.001684]
[1731312018418,0.18112752,81123.0,81122.0,0.001684]
[1731312018595,0.12594221,81123.0,81122.0,0.001684]
[1731312018817,0.1811277,81123.0,81122.0,0.001684]
[1731312019244,0.1811277,81123.0,81122.0,0.003684]
[1731312020954,0.12594221,81123.0,81122.0,0.003684]
[1731312021724,0.03678835,81127.0,81122.0,0.128484]
[1731312021931,0.12594221,81126.0,81122.0,0.128484]
[1731312022319,0.01627306,81125.0,81122.0,0.128484]
[1731312022548,0.123269,81123.0,81122.0,0.126484]
[1731312022775,0.24921121,81123.0,81122.0,0.126484]
[1731312023027,0.24921121,81123.0,81122.0,0.128484]
[1731312023239,0.28599956,81123.0,81122.0,0.003684]
[1731312023405,0.28599956,81123.0,81122.0,0.001684]
[1731312023581,0.24921121,81123.0,81122.0,0.003684]
[1731312023917,0.24921121,81123.0,81122.0,0.001684]
[1731312024332,0.34812202,81123.0,81122.0,0.001684]
[1731312024755,0.24921121,81123.0,81122.0,0.001684]
[1731312025470,0.24921121,81123.0,81122.0,0.003684]
[1731312025665,0.26761894,81123.0,81122.0,0.003684]
[1731312026235,0.32280155,81123.0,81122.0,0.003684]
[1731312026848,0.40343756,81123.0,81122.0,0.003684]
[1731312027048,0.51041197,81123.0,81122.0,0.003684]
[1731312028262,0.58398878,81123.0,81122.0,0.003684]
[1731312028667,0.47701437,81123.0,81122.0,0.003684]
[1731312028969,0.5028102,81123.0,81122.0,0.003684]
[1731312029148,0.41113632,81123.0,81122.0,0.003684]
[1731312029613,0.41687355,81123.0,81122.0,0.003684]
[1731312030295,0.50884456,81123.0,81122.0,0.003684]
[1731312030534,0.50884456,81123.0,81114.0,0.18673097]
[1731312030535,0.123275,81119.0,81114.0,0.18673097]
[1731312030709,0.2753237,81119.0,81114.0,0.18673097]
[1731312031685,0.2753237,81119.0,81114.0,0.001684]
[1731312031906,0.2753237,81119.0,81118.0,0.003394]
[1731312033209,0.33053711,81119.0,81118.0,0.003394]
[1731312035377,0.2753237,81119.0,81118.0,0.003394]
[1731312035810,0.61022209,81119.0,81118.0,0.003394]
[1731312036229,0.50522209,81119.0,81118.0,0.003394]
[1731312036430,0.41124307,81119.0,81118.0,0.003394]
[1731312036643,0.41124981,81119.0,81118.0,0.003394]
[1731312037291,0.38514332,81119.0,81118.0,0.003394]
[1731312037503,0.41130054,81119.0,81118.0,0.003394]
[1731312039467,0.28802554,81119.0,81118.0,0.003394]
[1731312039689,0.12594221,81119.0,81118.0,0.052194]
[1731312039831,0.14439237,81119.0,81118.0,0.175471]
[1731312040035,0.14439237,81119.0,81118.0,0.130194]
[1731312040036,0.01845016,81119.0,81118.0,0.130194]
[1731312040235,0.03682567,81129.0,81126.0,0.007]
[1731312040609,0.07534105,81133.0,81132.0,0.251555]
[1731312040610,0.001686,81133.0,81132.0,0.251555]
[1731312041238,0.001686,81133.0,81132.0,0.34322888]
[1731312041443,0.001686,81133.0,81132.0,0.34822888]
[1731312041971,0.001686,81133.0,81132.0,0.35409897]
[1731312042560,0.001686,81133.0,81132.0,0.34322888]
[1731312042713,0.001686,81133.0,81132.0,0.251555]
[1731312042913,0.12762821,81133.0,81132.0,0.002]
[1731312043111,0.25088221,81133.0,81132.0,0.002]
[1731312043503,0.12762821,81133.0,81132.0,0.002]
[1731312044031,0.26359198,81133.0,81132.0,0.002]
[1731312044212,0.33724703,81133.0,81132.0,0.002]
[1731312044420,0.33724703,81133.0,81132.0,0.003]
[1731312044823,0.33724703,81133.0,81132.0,0.002]
[1731312045023,0.33724703,81133.0,81127.0,0.0787]
[1731312045225,0.05525942,81130.0,81127.0,0.0787]
[1731312045428,0.03684739,81128.0,81127.0,0.0787]
[1731312045693,0.1627896,81128.0,81127.0,0.0787]
[1731312045846,0.12594221,81128.0,81127.0,0.0787]
[1731312046452,0.12594221,81128.0,81127.0,0.201963]
[1731312046671,0.03684823,81129.0,81128.0,0.123262]
[1731312047002,0.03684823,81131.0,81128.0,0.246524]
[1731312047158,0.16279044,81132.0,81131.0,0.123257]
[1731312047575,0.16278464,81132.0,81131.0,0.123257]
[1731312048179,0.16278464,81132.0,81131.0,0.124257]
[1731312048608,0.12594221,81132.0,81131.0,0.001]
[1731312048974,0.16278464,81132.0,81131.0,0.001]
[1731312049138,0.12594221,81132.0,81131.0,0.124257]
[1731312049498,0.12594221,81132.0,81131.0,0.126257]
[1731312050145,0.16278464,81132.0,81131.0,0.126257]
[1731312050301,0.16278464,81132.0,81131.0,0.128257]
[1731312050694,0.001686,81133.0,81132.0,0.125255]
[1731312050937,0.001686,81133.0,81132.0,0.123255]
[1731312052218,0.001686,81133.0,81132.0,0.178055]
[1731312052440,0.001686,81133.0,81132.0,0.256255]
[1731312052638,0.001686,81133.0,81132.0,0.25871992]
[1731312053530,0.001686,81133.0,81132.0,0.26071992]
[1731312053682,0.001686,81133.0,81132.0,0.25971992]
[1731312053905,0.001686,81133.0,81132.0,0.25771992]
[1731312054106,0.001686,81133.0,81132.0,0.25871992]
[1731312054675,0.001686,81133.0,81132.0,0.25771992]
[1731312055078,0.001686,81133.0,81132.0,0.25671992]
[1731312055460,0.001686,81133.0,81132.0,0.254255]
[1731312055658,0.001686,81133.0,81132.0,0.255255]
[1731312060260,0.001686,81133.0,81132.0,0.0772]
[1731312060457,0.001686,81133.0,81132.0,0.002]
[1731312061120,0.001686,81133.0,81132.0,0.001]
[1731312061323,0.001686,81133.0,81132.0,0.124255]
[1731312061523,0.001686,81133.0,81132.0,0.125255]
[1731312061725,0.001686,81133.0,81132.0,0.13171997]
[1731312061934,0.001686,81133.0,81132.0,0.26141997]
[1731312062208,0.001686,81133.0,81132.0,0.26241997]
[1731312062648,0.001686,81133.0,81132.0,0.26441997]
[1731312062859,0.001686,81133.0,81132.0,0.26541997]
[1731312063299,0.001686,81133.0,81132.0,0.261955]
[1731312063489,0.001686,81133.0,81132.0,0.367975]
[1731312063975,0.001686,81133.0,81132.0,0.396975]
[1731312064197,0.001686,81143.0,81142.0,0.12524]
[1731312064402,0.001686,81143.0,81142.0,0.39231818]
[1731312064603,0.001686,81143.0,81142.0,0.42285377]
[1731312064787,0.000843,81149.0,81148.0,0.39284477]
[1731312065290,0.000843,81149.0,81148.0,0.39484477]
[1731312065486,0.000843,81149.0,81148.0,0.39284477]
[1731312065694,0.000843,81149.0,81148.0,0.48310477]
[1731312066052,0.000843,81149.0,81148.0,0.343191]
[1731312066444,0.000843,81149.0,81148.0,0.344191]
[1731312067299,0.000843,81149.0,81148.0,0.48989783]
[1731312067462,0.000843,81149.0,81148.0,0.49089783]
[1731312068891,0.000843,81149.0,81148.0,0.74984004]
[1731312069384,0.18504697,81167.0,81165.0,0.274905]
[1731312069556,0.18504697,81167.0,81165.0,0.41481877]
[1731312069892,0.18504697,81178.0,81165.0,0.41481877]
[1731312071304,0.18504697,81178.0,81165.0,0.41581877]
[1731312071702,0.18504697,81178.0,81165.0,0.50407877]
[1731312072136,0.18504697,81178.0,81165.0,0.50507877]
[1731312074232,0.03682899,81191.0,81190.0,0.005]
[1731312074422,0.000843,81197.0,81196.0,0.235158]
[1731312074630,0.000843,81197.0,81196.0,0.33682067]
[1731312074871,0.000843,81197.0,81196.0,0.339358]
[1731312075011,0.000843,81200.0,81199.0,0.39806777]
[1731312075208,0.000698,81203.0,81202.0,0.140149]
[1731312075423,0.000698,81203.0,81202.0,0.26561125]
[1731312075765,0.000698,81203.0,81202.0,0.35387125]
[1731312075983,0.000698,81203.0,81202.0,0.351409]
[1731312076481,0.000698,81210.0,81209.0,0.130139]
[1731312076695,0.000698,81210.0,81209.0,0.35831277]
[1731312076920,0.000698,81210.0,81209.0,0.38131277]
[1731312077771,0.000698,81210.0,81209.0,0.35831277]
[1731312078031,0.000698,81210.0,81209.0,0.35931277]
[1731312078254,0.000698,81231.0,81209.0,0.35931277]
[1731312078255,0.18504697,81225.0,81214.0,0.173031]
[1731312078466,0.18504697,81225.0,81214.0,0.178031]
[1731312078639,0.000698,81231.0,81214.0,0.178031]
[1731312078844,0.000698,81231.0,81214.0,0.266291]
[1731312079002,0.000698,81231.0,81214.0,0.264291]
[1731312079393,0.000698,81231.0,81214.0,0.266291]
[1731312079635,0.000698,81231.0,81214.0,0.40620477]
[1731312080640,0.000698,81231.0,81214.0,0.40720477]
[1731312080862,0.000698,81231.0,81214.0,0.51320477]
[1731312081073,0.000698,81231.0,81214.0,0.373291]
[1731312082366,0.000698,81231.0,81214.0,0.51320477]
[1731312084379,0.000698,81231.0,81214.0,0.373291]
[1731312084781,0.000698,81231.0,81214.0,0.3729036]
[1731312087862,0.09111433,81230.0,81214.0,0.3250036]
[1731312088208,0.000698,81231.0,81214.0,0.3250036]
[1731312089005,0.000698,81231.0,81214.0,0.3240036]
[1731312089209,0.000698,81231.0,81214.0,0.3230036]
[1731312089538,0.000698,81231.0,81214.0,0.3250036]
[1731312090159,0.000698,81231.0,81214.0,0.3240036]
[1731312090393,0.000698,81231.0,81214.0,0.3250036]
[1731312090987,0.000698,81231.0,81214.0,0.3240036]
[1731312091433,0.000698,81231.0,81214.0,0.3250036]
[1731312092278,0.000698,81231.0,81214.0,0.46491737]
[1731312092871,0.000698,81231.0,81214.0,0.3250036]
[1731312093357,0.19089841,81244.0,81214.0,0.3250036]
[1731312093358,0.03634732,81246.0,81245.0,0.01]
[1731312093550,0.05521898,81248.0,81247.0,0.005]
[1731312093551,0.000698,81248.0,81247.0,0.005]
[1731312093728,0.000698,81248.0,81247.0,0.123081]
[1731312093875,0.000698,81248.0,81247.0,0.125081]
[1731312094283,0.000698,81248.0,81247.0,0.123081]
[1731312094495,0.000698,81248.0,81247.0,0.156081]
[1731312094720,0.000698,81248.0,81247.0,0.240181]
[1731312094919,0.000698,81248.0,81247.0,0.328441]
[1731312095081,0.000698,81248.0,81247.0,0.329441]
[1731312095281,0.000698,81248.0,81247.0,0.33533923]
[1731312095930,0.000698,81248.0,81247.0,0.43633923]
[1731312096138,0.000698,81248.0,81247.0,0.43433923]
[1731312096310,0.000698,81248.0,81247.0,0.56228144]
[1731312096942,0.000698,81248.0,81247.0,0.56028144]
[1731312097141,0.000698,81248.0,81247.0,0.56228144]
[1731312098112,0.000698,81248.0,81247.0,0.56028144]
[1731312098313,0.000698,81248.0,81247.0,0.56228144]
[1731312098924,0.000698,81248.0,81247.0,0.40633923]
[1731312099191,0.000698,81248.0,81247.0,0.19026]
[1731312099427,0.000698,81248.0,81247.0,0.09026]
[1731312099428,0.12664021,81248.0,81247.0,0.09026]
[1731312099656,0.12664021,81248.0,81247.0,0.002]
[1731312099887,0.27449181,81248.0,81247.0,0.002]
[1731312100107,0.27449181,81248.0,81233.0,0.18504697]
[1731312100108,0.15141281,81248.0,81233.0,0.18504697]
[1731312100311,0.123083,81246.0,81242.0,0.18504697]
[1731312100553,0.12594221,81245.0,81235.0,0.123098]
[1731312100784,0.12594221,81245.0,81235.0,0.123099]
[1731312100989,0.12594221,81245.0,81233.0,0.18504697]
[1731312100990,0.12594221,81245.0,81237.0,0.002]
[1731312101437,0.12594221,81245.0,81242.0,0.001]
[1731312101649,0.12594221,81245.0,81244.0,0.123086]
[1731312101863,0.12594221,81245.0,81237.0,0.248192]
[1731312101864,0.000698,81248.0,81247.0,0.123081]
[1731312102785,0.000698,81248.0,81247.0,0.08826]
[1731312103010,0.000698,81248.0,81247.0,0.211341]
[1731312103228,0.000698,81248.0,81247.0,0.08826]
[1731312105886,0.24971921,81248.0,81247.0,0.080711]
[1731312107224,0.24971921,81248.0,81247.0,0.078711]
[1731312107225,0.28603959,81248.0,81247.0,0.078711]
[1731312107428,0.30419979,81248.0,81247.0,0.080711]
[1731312107976,0.46271643,81248.0,81247.0,0.078711]
[1731312108102,0.123101,81234.0,81233.0,0.18504697]
[1731312108300,0.24904321,81234.0,81233.0,0.18504697]
[1731312108856,0.24904321,81234.0,81224.0,0.18504697]
[1731312108857,0.12594221,81234.0,81226.0,0.123112]
[1731312109061,0.24904521,81233.0,81226.0,0.125112]
[1731312109291,0.12594221,81233.0,81224.0,0.18504697]
[1731312109419,0.12594221,81233.0,81222.0,0.123118]
[1731312109602,0.123107,81230.0,81223.0,0.18504697]
[1731312109808,0.123104,81232.0,81223.0,0.30828697]
[1731312110006,0.123106,81231.0,81224.0,0.123115]
[1731312110216,0.123106,81231.0,81224.0,0.246355]
[1731312110963,0.12594221,81231.0,81224.0,0.12324]
[1731312111146,0.123112,81227.0,81224.0,0.12424]
[1731312111345,0.123111,81228.0,81224.0,0.12324]
[1731312111543,0.12594221,81230.0,81224.0,0.12324]
[1731312111753,0.123114,81225.0,81224.0,0.12424]
[1731312111956,0.24905621,81225.0,81224.0,0.001]
[1731312112862,0.28559855,81225.0,81224.0,0.001]
[1731312113368,0.12594221,81225.0,81224.0,0.001]
[1731312113573,0.24905621,81225.0,81224.0,0.001]
[1731312114407,0.38415467,81225.0,81224.0,0.002]
[1731312114820,0.05489742,81225.0,81224.0,0.002]
[1731312115018,0.123114,81225.0,81224.0,0.002]
[1731312115382,0.25828948,81225.0,81224.0,0.002]
[1731312116221,0.38423169,81225.0,81224.0,0.002]
[1731312116437,0.48100821,81225.0,81224.0,0.002]
[1731312116778,0.38923169,81225.0,81224.0,0.002]
[1731312117421,0.123129,81215.0,81214.0,0.001684]
[1731312117588,0.30406048,81215.0,81214.0,0.001684]
[1731312118267,0.30406017,81215.0,81214.0,0.001684]
[1731312118472,0.38446943,81215.0,81214.0,0.001684]
[1731312118798,0.13539822,81215.0,81214.0,0.001684]
[1731312119037,0.05501628,81216.0,81214.0,0.001684]
[1731312119231,0.09164878,81222.0,81214.0,0.124814]
[1731312119232,0.05501628,81217.0,81214.0,0.124814]
[1731312119403,0.22704198,81216.0,81214.0,0.124814]
[1731312119618,0.1353932,81215.0,81214.0,0.124814]
[1731312119856,0.22704198,81215.0,81214.0,0.003684]
[1731312120237,0.22704198,81215.0,81214.0,0.002684]
[1731312120486,0.2088047,81215.0,81214.0,0.126815]
[1731312120835,0.2088047,81215.0,81214.0,0.125815]
[1731312121020,0.2088047,81215.0,81214.0,0.126815]
[1731312121226,0.1353932,81215.0,81214.0,0.128815]
[1731312121496,0.05505451,81215.0,81214.0,0.003684]
[1731312121972,0.05505451,81215.0,81214.0,0.126815]
[1731312122164,0.05505451,81216.0,81215.0,0.123129]
[1731312122388,0.05505451,81218.0,81217.0,0.123126]
[1731312123582,0.03669738,81218.0,81216.0,0.246256]
[1731312123735,0.03669738,81219.0,81218.0,0.123125]
[1731312124365,0.18504697,81234.0,81218.0,0.123125]
[1731312124366,0.03669738,81221.0,81218.0,0.24625]
[1731312124560,0.03669738,81221.0,81220.0,0.123122]
[1731312124734,0.21759099,81228.0,81220.0,0.123122]
[1731312124735,0.03669738,81222.0,81220.0,0.123122]
[1731312124924,0.03669738,81222.0,81218.0,0.001]
[1731312125123,0.03669738,81220.0,81218.0,0.001]
[1731312125322,0.30411972,81219.0,81218.0,0.001]
[1731312125536,0.24906521,81219.0,81218.0,0.001]
[1731312125759,0.123129,81215.0,81214.0,0.001684]
[1731312125928,0.28576693,81215.0,81214.0,0.001684]
[1731312126428,0.31436783,81215.0,81214.0,0.001684]
[1731312126573,0.38952831,81215.0,81214.0,0.001684]
[1731312126772,0.38452831,81215.0,81214.0,0.001684]
[1731312126975,0.38452831,81215.0,81214.0,0.002684]
[1731312127346,0.32246525,81215.0,81214.0,0.002684]
[1731312127544,0.64903415,81215.0,81214.0,0.001684]
[1731312127797,0.58711284,81215.0,81214.0,0.003684]
[1731312127999,0.54088796,81215.0,81214.0,0.002684]
[1731312128203,0.64088796,81215.0,81214.0,0.002684]
[1731312129002,0.50684058,81215.0,81214.0,0.001684]
[1731312129238,0.50684058,81215.0,81214.0,0.002684]
[1731312129706,0.50184058,81215.0,81214.0,0.002684]
[1731312129977,0.50684058,81215.0,81214.0,0.002684]
[1731312130186,0.58017918,81215.0,81214.0,0.002684]
[1731312130531,0.39597419,81215.0,81214.0,0.002684]
[1731312130764,0.24907121,81215.0,81214.0,0.002684]
[1731312134295,0.12594221,81215.0,81214.0,0.002684]
[1731312135530,0.01232618,81224.0,81214.0,0.002684]
[1731312135770,0.12594221,81223.0,81217.0,0.123126]
[1731312136198,0.24906021,81223.0,81215.0,0.123129]
[1731312136422,0.12594221,81223.0,81217.0,0.123125]
[1731312136888,0.12594221,81223.0,81214.0,0.125924]
[1731312137084,0.12594221,81223.0,81216.0,0.123128]
[1731312137247,0.24906021,81223.0,81214.0,0.248055]
[1731312137455,0.24906021,81223.0,81217.0,0.001]
[1731312137659,0.24906021,81223.0,81217.0,0.002]
[1731312137862,0.123121,81221.0,81217.0,0.001]
[1731312138061,0.12594221,81220.0,81217.0,0.001]
[1731312139384,0.12594221,81220.0,81216.0,0.001]
[1731312139580,0.12594221,81220.0,81214.0,0.124924]
[1731312140007,0.12594221,81220.0,81217.0,0.001]
[1731312140418,0.12594221,81220.0,81214.0,0.124924]
[1731312140625,0.12594221,81220.0,81217.0,0.001]
[1731312141464,0.12594221,81220.0,81219.0,0.123123]
[1731312141677,0.000841,81224.0,81219.0,0.0764]
[1731312141907,0.000841,81224.0,81223.0,0.123117]
[1731312142108,0.000841,81224.0,81223.0,0.12557902]
[1731312142349,0.000841,81224.0,81223.0,0.123117]
[1731312143192,0.000841,81224.0,81223.0,0.124117]
[1731312143612,0.000841,81224.0,81223.0,0.123117]
[1731312143846,0.000841,81224.0,81223.0,0.001]
[1731312144040,0.24989921,81224.0,81223.0,0.001]
[1731312144390,0.30488353,81224.0,81223.0,0.001]
[1731312144785,0.31638497,81224.0,81223.0,0.001]
[1731312145388,0.39700454,81224.0,81223.0,0.001]
[1731312145814,0.59225399,81224.0,81223.0,0.001]
[1731312146015,0.005,81222.0,81214.0,0.001684]
[1731312146266,0.123129,81215.0,81214.0,0.001684]
[1731312146506,0.24907121,81215.0,81214.0,0.001684]
[1731312147240,0.12594221,81215.0,81214.0,0.001684]
[1731312147856,0.03673667,81216.0,81214.0,0.130784]
[1731312148056,0.03673667,81218.0,81217.0,0.123126]
[1731312148257,0.000841,81224.0,81217.0,0.123126]
[1731312148258,0.03673667,81219.0,81218.0,0.123125]
[1731312148468,0.03757767,81224.0,81223.0,0.125117]
[1731312148698,0.000841,81224.0,81223.0,0.125117]
[1731312149529,0.000841,81224.0,81223.0,0.202717]
[1731312150079,0.000841,81224.0,81223.0,0.323957]
[1731312150670,0.000841,81224.0,81223.0,0.32360899]
[1731312151386,0.000841,81224.0,81223.0,0.12324]
[1731312151585,0.24989921,81224.0,81223.0,0.12324]
[1731312151784,0.38567139,81224.0,81223.0,0.12324]
[1731312152021,0.4592041,81224.0,81223.0,0.12324]
[1731312152427,0.26255539,81224.0,81223.0,0.12324]
[1731312152654,0.33613124,81224.0,81223.0,0.12324]
[1731312153030,0.38567139,81224.0,81223.0,0.12324]
[1731312153237,0.26255539,81224.0,81223.0,0.12324]
[1731312153436,0.4592506,81224.0,81223.0,0.12324]
[1731312153637,0.45925875,81224.0,81223.0,0.12324]
[1731312153864,0.38567139,81224.0,81223.0,0.12324]
[1731312154065,0.39716696,81224.0,81223.0,0.12324]
[1731312154262,0.123121,81221.0,81214.0,0.001684]
[1731312154499,0.03679691,81217.0,81214.0,0.001684]
[1731312154626,0.05519537,81218.0,81214.0,0.001684]
[1731312154627,0.03679691,81216.0,81214.0,0.001684]
[1731312154827,0.05519537,81218.0,81214.0,0.001684]
[1731312154828,0.03679691,81215.0,81214.0,0.001684]
[1731312155044,0.12594221,81218.0,81214.0,0.001684]
[1731312155045,0.05519537,81216.0,81214.0,0.001684]
[1731312155469,0.05519537,81217.0,81214.0,0.001684]
[1731312155906,0.05519537,81216.0,81214.0,0.001684]
[1731312156111,0.12594221,81218.0,81214.0,0.001684]
[1731312156285,0.05520542,81215.0,81214.0,0.124924]
[1731312156684,0.05520542,81216.0,81214.0,0.124924]
[1731312156856,0.05520542,81217.0,81214.0,0.124924]
[1731312157056,0.05520542,81217.0,81214.0,0.248054]
[1731312157355,0.03680666,81215.0,81214.0,0.248054]
[1731312157552,0.05520542,81217.0,81214.0,0.248054]
[1731312157668,0.05520542,81216.0,81214.0,0.124924]
[1731312158071,0.05520542,81217.0,81214.0,0.124924]
[1731312158579,0.03681134,81215.0,81214.0,0.250055]
[1731312158787,0.03681134,81217.0,81216.0,0.123128]
[1731312158910,0.12594221,81218.0,81217.0,0.123126]
[1731312159111,0.12594221,81218.0,81217.0,0.12324]
[1731312159338,0.05520542,81220.0,81217.0,0.12524]
[1731312159660,0.03681044,81220.0,81219.0,0.002]
[1731312159842,0.03681044,81222.0,81218.0,0.24625]
[1731312159998,0.03681044,81222.0,81221.0,0.123119]
[1731312160378,0.15992944,81222.0,81221.0,0.12324]
[1731312160583,0.123119,81222.0,81221.0,0.12324]
[1731312160810,0.000842,81223.0,81221.0,0.12324]
[1731312160986,0.17833181,81222.0,81221.0,0.12324]
[1731312161193,0.20949238,81222.0,81221.0,0.12324]
[1731312161396,0.05521367,81222.0,81221.0,0.12324]
[1731312161961,0.000842,81223.0,81221.0,0.12324]
[1731312162100,0.000842,81223.0,81222.0,0.123119]
[1731312162101,0.05605567,81223.0,81222.0,0.123119]
[1731312162301,0.05605567,81223.0,81222.0,0.12324]
[1731312162302,0.18199788,81223.0,81222.0,0.12324]
[1731312162534,0.45939372,81223.0,81222.0,0.12324]
[1731312162887,0.48930466,81223.0,81222.0,0.12324]
[1731312163240,0.3972833,81223.0,81222.0,0.12324]
[1731312164018,0.48634103,81223.0,81222.0,0.12324]
[1731312164266,0.3972833,81223.0,81222.0,0.12001957]
[1731312164435,0.48931159,81223.0,81222.0,0.12001957]
[1731312164654,0.2741663,81223.0,81222.0,0.12001957]
[1731312164860,0.34778481,81223.0,81222.0,0.12001957]
[1731312165104,0.12678421,81223.0,81222.0,0.12001957]
[1731312165291,0.24990121,81223.0,81222.0,0.12001957]
[1731312165492,0.45939291,81223.0,81222.0,0.12001957]
[1731312165695,0.39728527,81223.0,81222.0,0.12001957]
[1731312165865,0.48931531,81223.0,81222.0,0.12001957]
[1731312166069,0.39729129,81223.0,81222.0,0.12001957]
[1731312167270,0.47091098,81223.0,81222.0,0.12001957]
[1731312167681,0.48931531,81223.0,81222.0,0.12001957]
[1731312167889,0.58815733,81223.0,81222.0,0.12001957]
[1731312168087,0.39729129,81223.0,81222.0,0.12001957]
[1731312169700,0.39730065,81223.0,81222.0,0.12001957]
[1731312172129,0.47092006,81223.0,81222.0,0.12170157]
[1731312172549,0.38578978,81223.0,81222.0,0.12170157]
[1731312172757,0.24990121,81223.0,81222.0,0.12170157]
[1731312172972,0.45939826,81223.0,81222.0,0.12170157]
[1731312173174,0.12678421,81223.0,81222.0,0.12170157]
[1731312173382,0.2626654,81223.0,81222.0,0.12170157]
[1731312173602,0.3857824,81223.0,81222.0,0.12170157]
[1731312173832,0.39729535,81223.0,81222.0,0.12170157]
[1731312174039,0.47091694,81223.0,81222.0,0.12170157]
[1731312174187,0.39729535,81223.0,81222.0,0.12170157]
[1731312174513,0.48932257,81223.0,81222.0,0.12170157]
[1731312174748,0.39729535,81223.0,81222.0,0.12170157]
[1731312175176,0.27417835,81223.0,81222.0,0.12170157]
[1731312175351,0.39729535,81223.0,81222.0,0.12170157]
[1731312178131,0.27417835,81223.0,81222.0,0.12170157]
[1731312178323,0.39729535,81223.0,81222.0,0.12170157]
[1731312180244,0.27417835,81223.0,81222.0,0.12170157]
[1731312180459,0.36628919,81223.0,81222.0,0.12170157]
[1731312180737,0.36628919,81223.0,81222.0,0.24482057]
[1731312181443,0.36629789,81223.0,81222.0,0.24482057]
[1731312181739,0.27418705,81223.0,81222.0,0.24482057]
[1731312181940,0.35478279,81223.0,81222.0,0.12170157]
[1731312182149,0.2626654,81223.0,81222.0,0.24482057]
[1731312182381,0.2626654,81223.0,81222.0,0.12170157]
[1731312182783,0.33635618,81223.0,81222.0,0.12170157]
[1731312182984,0.3857824,81223.0,81222.0,0.12170157]
[1731312183204,0.2626654,81223.0,81222.0,0.12170157]
[1731312183345,0.36630278,81223.0,81222.0,0.12170157]
[1731312183749,0.48941978,81223.0,81222.0,0.12170157]
[1731312184169,0.3857824,81223.0,81222.0,0.12170157]
[1731312184578,0.3973039,81223.0,81222.0,0.12170157]
[1731312186216,0.2741869,81223.0,81222.0,0.12170157]
[1731312186356,0.2626654,81223.0,81222.0,0.32402057]